fUSD/lending_fUSD_20260419
["ID","MTS","AMOUNT","RATE_DAILY","PERIOD"]
[420784041,1776528651584,1000.0,0.0003287,120]
[420784459,1776528656653,2276.05576071,0.0003287,120]
[420784527,1776528689138,5000.0,0.00032877,120]
[420784529,1776528762247,1000.0,0.0003287,120]
[420784530,1776528786153,1000.0,0.0003287,120]
[420784531,1776528813791,1000.0,0.0003287,120]
[420784532,1776528849043,2292.94,0.00032877,120]
[420784533,1776528881975,3000.0,0.00032877,120]
[420784534,1776528942605,1076.3,0.00032,120]
[420784535,1776528951731,3026.81,0.00032,120]
[420784540,1776529251040,500.0,0.00032192,120]
[420784541,1776529311892,500.0,0.00029772,120]
[420784542,1776529317359,150.0,0.00010194,30]
[420784546,1776529349334,500.0,0.00029772,120]
[420784549,1776529385068,303.59751202,0.00032877,120]
[420784550,1776529396617,150.0,0.00010196,30]
[420784551,1776529474993,150.0,9.588e-05,30]
[420784552,1776529475340,150.0,0.00010173,30]
[420784553,1776529553940,150.0,0.00010413,30]
[420784554,1776529564048,1003.78,0.000325,120]
[420784555,1776529613461,508.96697114,0.000325,120]
[420784563,1776529832317,-753.07092822,8.085e-05,2]
[420784564,1776529832372,-1099.34907178,8.085e-05,2]
[420784565,1776529832382,-300.0,8.285e-05,2]
[420784566,1776529832392,-209.95165822,8.285e-05,2]
[420784567,1776529832429,-90.04834178,8.285e-05,2]
[420784568,1776529832438,-300.0,8.285e-05,2]
[420784569,1776529832448,-300.0,8.285e-05,2]
[420784570,1776529832458,-1105.28495822,8.307e-05,2]
[420784571,1776529832542,-494.71504178,8.307e-05,2]
[420784572,1776529832553,-250.0,8.324e-05,2]
[420784573,1776529832563,-150.0,8.342e-05,2]
[420784574,1776529832573,-153.96276888,8.368e-05,2]
[420784575,1776529832583,-2137.65,8.432e-05,2]
[420784576,1776529832592,-150.0,8.554e-05,2]
[420784577,1776529832602,-153.96276887,8.609e-05,2]
[420784578,1776529832612,-516.24722978,8.661e-05,2]
[420784579,1776529832624,-672.39541622,8.661e-05,2]
[420784580,1776529832634,-150.0,8.705e-05,2]
[420784581,1776529832643,-1200.0,8.747e-05,2]
[420784582,1776529832653,-22.91017416,8.747e-05,2]
[420784584,1776529832665,-127.08982584,8.747e-05,2]
[420784585,1776529832675,-300.0,8.747e-05,2]
[420784586,1776529832684,-57580.7639582,8.748e-05,2]
[420784587,1776529832695,-265.84703492,8.748e-05,2]
[420784592,1776529838461,-500.0,8.747e-05,2]
[420784593,1776529838471,-80.29201335,8.747e-05,2]
[420784594,1776529838517,-117.99575472,8.747e-05,2]
[420784595,1776529838527,-500.0,8.747e-05,2]
[420784596,1776529838537,-498.82792093,8.747e-05,2]
[420784597,1776529838547,-500.0,8.747e-05,2]
[420784598,1776529838557,-570.16505077,8.747e-05,2]
[420784599,1776529838567,-25.1535391,8.747e-05,2]
[420784600,1776529838579,-131.02865285,8.747e-05,2]
[420784601,1776529838589,-500.0,8.747e-05,2]
[420784602,1776529838598,-512.25739048,8.748e-05,2]
[420784603,1776529838614,-143130.56339977,8.748e-05,2]
[420784604,1776529838626,-124554.41913047,8.748e-05,2]
[420784605,1776529838646,-380.24418438,8.748e-05,2]
[420784606,1776529838658,-6859.99277437,8.748e-05,2]
[420784607,1776529838803,-252.9257169,8.748e-05,2]
[420784733,1776529841162,-345029.09071051,8.748e-05,2]
[420784734,1776529841171,-1200.0,8.748e-05,2]
[420784735,1776529841181,-2500.0,8.749e-05,2]
[420784736,1776529841190,-26701.4124,8.749e-05,2]
[420784737,1776529841199,-500.0,8.823e-05,2]
[420784738,1776529841208,-500.0,8.823e-05,2]
[420784739,1776529841218,-165.24499508,8.823e-05,2]
[420784740,1776529841229,-562.81492935,8.823e-05,2]
[420784741,1776529841239,-600.0,8.823e-05,2]
[420784742,1776529841247,-502.10432319,8.823e-05,2]
[420784743,1776529841257,-1086.1218991,8.848e-05,3]
[420784744,1776529841266,-3191.579,8.848e-05,2]
[420784745,1776529841276,-176.563,8.848e-05,2]
[420784746,1776529841285,-302.25,8.848e-05,2]
[420784747,1776529841295,-153.96276887,8.849e-05,2]
[420784748,1776529841304,-167.15,8.89e-05,2]
[420784749,1776529841314,-300.0,8.894e-05,2]
[420784750,1776529841323,-150.0,9.005e-05,2]
[420784751,1776529841333,-302.25,9.122e-05,2]
[420784752,1776529841342,-4605.1700681,9.138e-05,2]
[420784753,1776529841351,-250.0,9.138e-05,2]
[420784754,1776529841361,-250.0,9.138e-05,2]
[420784755,1776529841378,-150.0,9.305e-05,2]
[420784756,1776529841387,-1600.0,9.345e-05,2]
[420784757,1776529841397,-1574.46679531,9.385e-05,2]
[420784758,1776529841407,-302.26,9.396e-05,2]
[420784759,1776529841416,-150.0,9.584e-05,2]
[420784760,1776529841425,-1000.0,9.6e-05,2]
[420784761,1776529841435,-1680.0,9.622e-05,2]
[420784762,1776529841445,-260.0,9.863e-05,2]
[420784763,1776529841455,-186.37372281,0.0001,2]
[420784764,1776529841465,-266.4082173,0.0001,2]
[420784765,1776529841474,-246.08085986,0.0001,2]
[420784766,1776529841483,-259.02406543,0.0001,2]
[420784767,1776529841493,-151.0,0.0001,2]
[420784768,1776529841502,-151.0,0.0001,2]
[420784769,1776529841512,-151.0,0.0001,2]
[420784770,1776529841520,-151.0,0.0001,2]
[420784771,1776529841530,-151.0,0.0001,2]
[420784772,1776529841540,-151.0,0.0001,2]
[420784773,1776529841549,-151.0,0.0001,2]
[420784774,1776529841559,-151.0,0.0001,2]
[420784775,1776529841568,-151.0,0.0001,2]
[420784776,1776529841578,-151.0,0.0001,2]
[420784777,1776529841588,-151.0,0.0001,2]
[420784778,1776529841597,-151.0,0.0001,2]
[420784779,1776529841606,-151.0,0.0001,2]
[420784780,1776529841616,-151.0,0.0001,2]
[420784781,1776529841627,-151.0,0.0001,2]
[420784782,1776529841636,-151.0,0.0001,2]
[420784783,1776529841646,-151.0,0.0001,2]
[420784784,1776529841656,-289.28670008,0.0001,2]
[420784785,1776529841666,-150.0,0.0001002,2]
[420784786,1776529841675,-150.0,0.0001032,2]
[420784787,1776529841686,-160.0,0.00010349,2]
[420784788,1776529841697,-1600.0,0.00010384,2]
[420784789,1776529841706,-720.0,0.00010584,2]
[420784790,1776529841715,-260.62,0.0001062,2]
[420784791,1776529841725,-3923.1955133,0.000109,2]
[420784792,1776529841734,-150.0,0.00010959,2]
[420784793,1776529841743,-440.93049358,0.00011099,2]
[420784794,1776529841752,-440.93049352,0.00011099,2]
[420784795,1776529841763,-167.15,0.00011113,2]
[420784796,1776529841773,-1600.0,0.00011422,2]
[420784797,1776529841783,-250.0,0.0001163,2]
[420784798,1776529841792,-2137.65,0.00011805,2]
[420784799,1776529841804,-1600.0,0.0001246,2]
[420784800,1776529841813,-177.57145512,0.00012723,4]
[420784801,1776529841823,-250.0,0.00013,2]
[420784802,1776529841834,-1265.0,0.00013112,2]
[420784803,1776529841843,-1218.0,0.00013112,2]
[420784804,1776529841852,-926.0,0.00013112,2]
[420784805,1776529841861,-622.0,0.00013112,2]
[420784806,1776529841871,-3528.0,0.00013112,2]
[420784807,1776529841880,-167.15,0.00013335,2]
[420784808,1776529841889,-440.93049352,0.00013405,2]
[420784809,1776529841898,-3923.19551329,0.00013442,2]
[420784810,1776529841907,-500.0,0.00013698,2]
[420784811,1776529841917,-500.0,0.00013698,2]
[420784812,1776529841926,-356.35759394,0.00013698,2]
[420784813,1776529841936,-500.0,0.00013698,2]
[420784814,1776529841946,-500.0,0.00013698,2]
[420784815,1776529841957,-500.0,0.00013698,2]
[420784816,1776529841966,-500.0,0.00013698,2]
[420784817,1776529841976,-500.0,0.00013698,2]
[420784818,1776529841985,-500.0,0.00013698,2]
[420784819,1776529841994,-500.0,0.00013698,2]
[420784820,1776529842003,-500.0,0.00013698,2]
[420784821,1776529842013,-500.0,0.00013698,2]
[420784822,1776529842022,-500.0,0.00013698,2]
[420784823,1776529842031,-500.0,0.00013698,2]
[420784824,1776529842040,-500.0,0.00013698,2]
[420784825,1776529842050,-500.0,0.00013698,2]
[420784826,1776529842059,-500.0,0.00013698,2]
[420784827,1776529842069,-500.0,0.00013698,2]
[420784828,1776529842078,-1000.0,0.00013699,7]
[420784829,1776529842088,-330.54670556,0.00013699,2]
[420784830,1776529842097,-583.0,0.00013954,2]
[420784831,1776529842106,-181.0,0.00013967,2]
[420784832,1776529842115,-161.0,0.00013967,2]
[420784833,1776529842124,-662.0,0.00013967,2]
[420784834,1776529842134,-284.0,0.00013967,2]
[420784835,1776529842144,-249.0,0.00013967,2]
[420784836,1776529842153,-310.0,0.00013967,2]
[420784837,1776529842163,-986.0,0.00013967,2]
[420784838,1776529842173,-2413.6426039,0.0001399,2]
[420784839,1776529842182,-150.99,0.00014504,2]
[420784840,1776529842192,-3627.4,0.00014504,2]
[420784841,1776529842201,-999.99,0.00014504,2]
[420784842,1776529842210,-7330.54,0.00014504,2]
[420784843,1776529842220,-181.0,0.00014967,2]
[420784844,1776529842230,-161.0,0.00014967,2]
[420784845,1776529842239,-662.0,0.00014967,2]
[420784846,1776529842250,-284.0,0.00014967,2]
[420784847,1776529842259,-249.0,0.00014967,2]
[420784848,1776529842268,-310.0,0.00014967,2]
[420784849,1776529842277,-986.0,0.00014967,2]
[420784850,1776529842287,-300.0,0.00015,2]
[420784851,1776529842296,-200.0,0.0001522,2]
[420784852,1776529842305,-4000.0,0.00015507,2]
[420784853,1776529842315,-440.93049352,0.00015733,2]
[420784854,1776529842324,-4000.0,0.00015895,2]
[420784855,1776529842334,-181.0,0.00015967,2]
[420784856,1776529842343,-161.0,0.00015967,2]
[420784857,1776529842353,-662.0,0.00015967,2]
[420784858,1776529842363,-284.0,0.00015967,2]
[420784859,1776529842372,-249.0,0.00015967,2]
[420784860,1776529842382,-310.0,0.00015967,2]
[420784861,1776529842391,-986.0,0.00015967,2]
[420784862,1776529842400,-230.657,0.00016112,2]
[420784863,1776529842409,-3528.0,0.00016112,2]
[420784864,1776529842419,-272.41182147,0.00016207,7]
[420784865,1776529842428,-4000.0,0.00016282,2]
[420784866,1776529842438,-260.0,0.00016301,2]
[420784867,1776529842447,-500.0,0.00016437,2]
[420784868,1776529842456,-500.0,0.00016437,2]
[420784869,1776529842465,-161.0,0.00016438,2]
[420784870,1776529842475,-500.0,0.00016438,2]
[420784871,1776529842484,-500.0,0.00016438,2]
[420784872,1776529842493,-500.0,0.00016438,2]
[420784873,1776529842503,-500.0,0.00016438,2]
[420784874,1776529842512,-500.0,0.00016438,2]
[420784875,1776529842522,-500.0,0.00016438,2]
[420784876,1776529842531,-500.0,0.00016438,2]
[420784877,1776529842540,-500.0,0.00016438,2]
[420784878,1776529842549,-500.0,0.00016438,2]
[420784879,1776529842559,-500.0,0.00016438,2]
[420784880,1776529842568,-479.73422386,0.00016438,2]
[420784881,1776529842577,-500.0,0.00016438,2]
[420784882,1776529842587,-500.0,0.00016438,2]
[420784883,1776529842596,-500.0,0.00016438,2]
[420784884,1776529842606,-500.0,0.00016438,2]
[420784885,1776529842615,-500.0,0.00016438,2]
[420784886,1776529842625,-500.0,0.00016438,2]
[420784887,1776529842634,-500.0,0.00016438,2]
[420784888,1776529842644,-500.0,0.00016438,2]
[420784889,1776529842653,-500.0,0.00016438,2]
[420784890,1776529842663,-500.0,0.00016438,2]
[420784891,1776529842673,-500.0,0.00016438,2]
[420784892,1776529842682,-500.0,0.00016438,2]
[420784893,1776529842690,-500.0,0.00016438,2]
[420784894,1776529842700,-500.0,0.00016438,2]
[420784895,1776529842709,-500.0,0.00016438,2]
[420784896,1776529842718,-500.0,0.00016438,2]
[420784897,1776529842727,-500.0,0.00016438,2]
[420784898,1776529842737,-500.0,0.00016438,2]
[420784899,1776529842745,-500.0,0.00016438,2]
[420784900,1776529842754,-500.0,0.00016438,2]
[420784901,1776529842764,-500.0,0.00016438,2]
[420784902,1776529842773,-500.0,0.00016438,2]
[420784903,1776529842782,-500.0,0.00016438,2]
[420784904,1776529842791,-500.0,0.00016438,2]
[420784905,1776529842800,-500.0,0.00016438,2]
[420784906,1776529842809,-500.0,0.00016438,2]
[420784907,1776529842818,-500.0,0.00016438,2]
[420784908,1776529842828,-500.0,0.00016438,2]
[420784909,1776529842837,-500.0,0.00016438,2]
[420784910,1776529842846,-500.0,0.00016438,2]
[420784911,1776529842856,-500.0,0.00016438,2]
[420784912,1776529842864,-500.0,0.00016438,2]
[420784913,1776529842874,-500.0,0.00016438,2]
[420784914,1776529842883,-500.0,0.00016438,2]
[420784915,1776529842892,-500.0,0.00016438,2]
[420784916,1776529842902,-500.0,0.00016438,2]
[420784917,1776529842911,-500.0,0.00016473,2]
[420784918,1776529842920,-500.0,0.00016658,2]
[420784919,1776529842930,-4000.0,0.0001667,2]
[420784920,1776529842939,-504.1691341,0.00016963,3]
[420784921,1776529842948,-181.0,0.00016967,2]
[420784922,1776529842958,-161.0,0.00016967,2]
[420784923,1776529842967,-662.0,0.00016967,2]
[420784924,1776529842976,-284.0,0.00016967,2]
[420784925,1776529842985,-249.0,0.00016967,2]
[420784926,1776529842994,-310.0,0.00016967,2]
[420784927,1776529843004,-986.0,0.00016967,2]
[420784928,1776529843014,-350.0,0.00017,2]
[420784929,1776529843023,-4000.0,0.00017058,2]
[420784930,1776529843032,-197.17,0.00017201,7]
[420784931,1776529843041,-157.74,0.00017201,7]
[420784932,1776529843050,-181.0,0.00017967,2]
[420784933,1776529843060,-161.0,0.00017967,2]
[420784934,1776529843069,-662.0,0.00017967,2]
[420784935,1776529843078,-284.0,0.00017967,2]
[420784936,1776529843087,-249.0,0.00017967,2]
[420784937,1776529843097,-310.0,0.00017967,2]
[420784938,1776529843106,-986.0,0.00017967,2]
[420784939,1776529843116,-5000.0,0.00018047,2]
[420784940,1776529843125,-440.93049352,0.00018061,2]
[420784941,1776529843135,-3923.19551329,0.00018236,2]
[420784942,1776529843144,-199.0,0.00018967,2]
[420784943,1776529843153,-167.0,0.00018967,2]
[420784944,1776529843163,-664.35312708,0.00018967,2]
[420784945,1776529843172,-291.0,0.00018967,2]
[420784946,1776529843181,-266.0,0.00018967,2]
[420784947,1776529843190,-314.0,0.00018967,2]
[420784948,1776529843199,-1004.0,0.00018967,2]
[420784949,1776529843209,-400.0,0.00019,2]
[420784950,1776529843218,-290.0333767,0.00019028,4]
[420784951,1776529843228,-1489.863,0.00019112,2]
[420784952,1776529843237,-200.0,0.0002,10]
[420784953,1776529843246,-9899.99,0.0002,30]
[420784954,1776529843256,-300.0,0.000201,10]
[420784955,1776529843266,-440.93049352,0.00020388,2]
[420784956,1776529843276,-450.0,0.00021,2]
[420784957,1776529843285,-164.7,0.00021003,2]
[420784958,1776529843294,-260.0,0.00021505,3]
[420784959,1776529843304,-5000.0,0.00021918,2]
[420784960,1776529843314,-152.47,0.00022,2]
[420784961,1776529843323,-500.0,0.00022176,2]
[420784962,1776529843333,-440.93049352,0.00022716,2]
[420784963,1776529843342,-500.0,0.00023,2]
[420784964,1776529843352,-3923.19551329,0.0002303,2]
[420784965,1776529843361,-285.40220294,0.00023614,48]
[420784966,1776529843370,-5018.71878087,0.0002375,2]
[420784967,1776529843379,-500.0,0.00023954,30]
[420784968,1776529843389,-500.0,0.00023954,30]
[420784969,1776529843398,-500.0,0.00023954,30]
[420784970,1776529843408,-500.0,0.00023954,30]
[420784971,1776529843417,-915.0,0.00023954,30]
[420784972,1776529843426,-159.0,0.00024469,5]
[420784973,1776529843436,-164.7,0.00024469,2]
[420784974,1776529843445,-1000.0,0.00024658,2]
[420784975,1776529843455,-1277.59712544,0.000248,2]
[420784976,1776529843464,-151.0,0.00024897,7]
[420784977,1776529843474,-52037.3898658,0.000249,3]
[420784978,1776529843483,-2001.43807176,0.00024976,3]
[420784979,1776529843493,-550.0,0.00025,2]
[420784980,1776529843502,-622.59,0.00025,7]
[420784981,1776529843511,-440.93049352,0.00025044,2]
[420784982,1776529843520,-2001.43807176,0.00025059,3]
[420784983,1776529843530,-500.0,0.00025534,2]
[420784984,1776529843539,-260.0,0.00025711,7]
[420784985,1776529843549,-197.17,0.00025861,7]
[420784986,1776529843559,-150.0,0.00026704,2]
[420784987,1776529843569,-150.0,0.00026704,2]
[420784988,1776529843578,-150.94695297,0.00026704,2]
[420784989,1776529843588,-159.48173857,0.00026704,2]
[420784990,1776529843597,-150.0,0.00026704,2]
[420784991,1776529843610,-151.13714091,0.00026704,2]
[420784992,1776529843619,-150.0,0.00026704,2]
[420784993,1776529843628,-150.0,0.00026704,2]
[420784994,1776529843638,-150.0,0.00026704,2]
[420784995,1776529843647,-150.0,0.00026803,7]
[420784997,1776529843656,-300.64342649,0.00026849,7]
[420784999,1776529843666,-600.0,0.00027,2]
[420785001,1776529843675,-259.38,0.00027292,2]
[420785003,1776529843685,-2001.43807176,0.00027367,3]
[420785005,1776529843694,-2001.43807176,0.00027369,3]
[420785007,1776529843703,-440.93049352,0.00027372,2]
[420785009,1776529843713,-2001.43807176,0.00027377,3]
[420785011,1776529843722,-1000.0,0.00027397,20]
[420785014,1776529843733,-1277.59712543,0.00027817,2]
[420785017,1776529843743,-2700.0,0.00027882,21]
[420785020,1776529843752,-2001.43807176,0.00028146,3]
[420785022,1776529843761,-500.0,0.00028156,21]
[420785024,1776529843771,-500.0,0.00028156,21]
[420785026,1776529843780,-492.7,0.000282,14]
[420785027,1776529843789,-2700.0,0.00028704,21]
[420785031,1776529843799,-650.0,0.00029,2]
[420785034,1776529843808,-260.0,0.00029112,12]
[420785036,1776529843818,-250.0,0.00029452,13]
[420785039,1776529843828,-250.0,0.00029452,13]
[420785042,1776529843837,-400.0,0.00029452,13]
[420785045,1776529843846,-2700.0,0.00029526,21]
[420785048,1776529843855,-200.0,0.00029562,2]
[420785050,1776529843864,-465.24329808,0.00029698,2]
[420785051,1776529843873,-440.93049352,0.000297,2]
[420785052,1776529843882,-13464.29618183,0.000297,2]
[420785055,1776529843891,-4587.6570728,0.000297,2]
[420785056,1776529843901,-5061.8709811,0.000297,2]
[420785057,1776529843911,-644.35441932,0.000297,5]
[420785058,1776529843920,-500.0,0.00029789,7]
[420785059,1776529843929,-212.14226552,0.00029789,7]
[420785060,1776529843941,-151.30686487,0.00029789,20]
[420785061,1776529843951,-215.0,0.0002979,5]
[420785062,1776529843962,-479.58515176,0.0002979,2]
[420785063,1776529843973,-479.58515176,0.0002979,2]
[420785064,1776529843983,-200.0,0.00029798,5]
[420785065,1776529843993,-578.20924308,0.00029798,5]
[420785066,1776529844005,-599.60298507,0.00029798,5]
[420785067,1776529844014,-621.78829552,0.00029798,5]
[420785068,1776529844024,-269.71660219,0.00029798,5]
[420785069,1776529844034,-500.0,0.00029798,5]
[420785070,1776529844043,-151.0,0.00029798,5]
[420785071,1776529844053,-500.0,0.00029798,5]
[420785072,1776529844063,-151.0,0.00029798,5]
[420785073,1776529844072,-500.0,0.00029798,5]
[420785074,1776529844083,-151.0,0.00029798,5]
[420785075,1776529844092,-500.0,0.00029798,5]
[420785076,1776529844101,-151.0,0.00029798,5]
[420785077,1776529844112,-500.0,0.00029798,5]
[420785078,1776529844122,-151.0,0.00029798,5]
[420785079,1776529844131,-500.0,0.00029798,5]
[420785080,1776529844141,-151.0,0.00029798,5]
[420785081,1776529844151,-500.0,0.00029798,5]
[420785082,1776529844160,-151.0,0.00029798,5]
[420785083,1776529844169,-500.0,0.00029798,5]
[420785084,1776529844179,-151.0,0.00029798,5]
[420785085,1776529844189,-500.0,0.00029798,5]
[420785086,1776529844199,-499.27707829,0.00029798,5]
[420785087,1776529844208,-151.0,0.00029798,5]
[420785088,1776529844218,-500.0,0.00029798,5]
[420785089,1776529844227,-151.0,0.00029798,5]
[420785090,1776529844237,-151.0,0.00029798,5]
[420785091,1776529844247,-500.0,0.00029798,5]
[420785092,1776529844256,-151.0,0.00029798,5]
[420785093,1776529844265,-151.0,0.00029798,5]
[420785094,1776529844275,-151.0,0.00029798,5]
[420785095,1776529844284,-151.0,0.00029798,5]
[420785096,1776529844294,-500.0,0.00029798,5]
[420785097,1776529844303,-151.0,0.00029798,5]
[420785098,1776529844313,-500.0,0.00029798,5]
[420785099,1776529844322,-151.0,0.00029798,5]
[420785100,1776529844331,-500.0,0.00029798,5]
[420785101,1776529844341,-151.0,0.00029798,5]
[420785102,1776529844350,-500.0,0.00029798,5]
[420785103,1776529844360,-151.0,0.00029798,5]
[420785104,1776529844369,-500.0,0.00029798,5]
[420785105,1776529844378,-151.0,0.00029798,5]
[420785106,1776529844387,-500.0,0.00029798,5]
[420785107,1776529844396,-2000.0,0.00029798,5]
[420785108,1776529844405,-500.0,0.00029798,5]
[420785109,1776529844414,-2000.0,0.00029798,5]
[420785110,1776529844423,-500.0,0.00029798,5]
[420785111,1776529844433,-2000.0,0.00029798,5]
[420785112,1776529844442,-500.0,0.00029798,5]
[420785113,1776529844451,-1500.0,0.00029798,5]
[420785114,1776529844460,-500.0,0.00029798,5]
[420785115,1776529844470,-500.0,0.00029798,5]
[420785116,1776529844479,-500.0,0.00029798,5]
[420785117,1776529844488,-500.0,0.00029798,5]
[420785118,1776529844497,-500.0,0.00029798,5]
[420785119,1776529844506,-500.0,0.00029798,5]
[420785120,1776529844515,-500.0,0.00029798,5]
[420785121,1776529844526,-500.0,0.00029798,5]
[420785122,1776529844536,-500.0,0.00029798,5]
[420785123,1776529844545,-500.0,0.00029798,5]
[420785124,1776529844555,-500.0,0.00029798,5]
[420785126,1776529845994,-151.0,0.00029798,5]
[420785127,1776529846048,-227.34163157,0.00029798,5]
[420785128,1776529846064,-285.07661078,0.00029798,5]
[420785129,1776529846073,-151.0,0.00029798,5]
[420785130,1776529846083,-250.0,0.00029798,2]
[420785131,1776529846092,-210830.94636768,0.000298,2]
[420785132,1776529846102,-1491565.57226104,0.000298,2]
[420785133,1776529846112,-309768.26502514,0.000298,2]
[420785135,1776529846422,-1349.0,0.00012917,2]
[420785136,1776529846432,-1349.0,0.00015917,2]
[420785137,1776529846442,-1349.0,0.00018917,2]
[420785138,1776529846452,-6348.19472495,0.00027397,10]
[420785139,1776529846707,-2271.0,8.749e-05,2]
[420785140,1776529846723,-725.3672,8.749e-05,2]
[420785141,1776529846735,-44653.89606177,8.749e-05,2]
[420785142,1776529846748,-367.6089875,8.749e-05,2]
[420785143,1776529846820,-613.97932853,8.749e-05,2]
[420785144,1776529846833,-275802.54514443,8.749e-05,2]
[420785145,1776529846932,-52765.63424903,8.749e-05,2]
[420785163,1776529859009,-596.41541487,0.00043972,120]
[420785165,1776529859133,-935.26,0.00043972,120]
[420785166,1776529859259,-1070.52,0.00043972,120]
[420785168,1776529859382,-1050.77,0.00043972,120]
[420785169,1776529859512,-935.43736985,0.00043972,120]
[420785170,1776529859643,-2075.54489231,0.00043972,120]
[420785171,1776529859770,-1070.52,0.00043972,120]
[420785172,1776529859903,-1050.77,0.00043972,120]
[420785173,1776529860035,-1070.52,0.00043972,120]
[420785174,1776529860165,-1050.77,0.00043972,120]
[420785175,1776529860294,-1070.52,0.00043972,120]
[420785176,1776529860427,-1050.77,0.00043972,120]
[420785177,1776529860562,-1070.52,0.00043972,120]
[420785178,1776529860709,-1050.77,0.00043972,120]
[420785179,1776529860841,-1070.52,0.00043972,120]
[420785180,1776529860972,-1050.77,0.00043972,120]
[420785181,1776529861102,-679.42,0.00043972,120]
[420785182,1776529861229,-1070.52,0.00043972,120]
[420785183,1776529861356,-1050.77,0.00043972,120]
[420785184,1776529861481,-679.42,0.00043972,120]
[420785185,1776529861613,-1070.52,0.00043972,120]
[420785186,1776529861742,-1050.77,0.00043972,120]
[420785187,1776529861871,-679.42,0.00043972,120]
[420785188,1776529861999,-1070.52,0.00043972,120]
[420785189,1776529862122,-963.5,0.00043972,120]
[420785190,1776529862249,-1051.00358578,0.00043972,120]
[420785191,1776529862376,-679.42,0.00043972,120]
[420785192,1776529862501,-1070.52,0.00043972,120]
[420785193,1776529862631,-963.5,0.00043972,120]
[420785194,1776529862762,-679.42,0.00043972,120]
[420785195,1776529862893,-963.5,0.00043972,120]
[420785196,1776529863025,-679.42,0.00043972,120]
[420785197,1776529863151,-963.5,0.00043972,120]
[420785198,1776529863281,-1070.52,0.00043972,120]
[420785199,1776529863407,-963.5,0.00043972,120]
[420785200,1776529863535,-679.42,0.00043972,120]
[420785201,1776529863663,-679.42,0.00043972,120]
[420785202,1776529863792,-963.5,0.00043972,120]
[420785203,1776529863924,-1070.52,0.00043972,120]
[420785204,1776529864055,-770.52,0.00043972,120]
[420785205,1776529864186,-963.5,0.00043972,120]
[420785206,1776529864312,-1070.52,0.00043972,120]
[420785207,1776529864443,-679.42,0.00043972,120]
[420785208,1776529864574,-770.52,0.00043972,120]
[420785209,1776529864708,-963.5,0.00043972,120]
[420785210,1776529864841,-1070.52,0.00043972,120]
[420785211,1776529864976,-770.52,0.00043972,120]
[420785212,1776529865102,-679.42,0.00043972,120]
[420785213,1776529865227,-963.5,0.00043972,120]
[420785214,1776529865353,-1070.52,0.00043972,120]
[420785215,1776529865478,-770.52,0.00043972,120]
[420785216,1776529865607,-963.5,0.00043972,120]
[420785217,1776529865739,-679.42,0.00043972,120]
[420785218,1776529865869,-1070.52,0.00043972,120]
[420785219,1776529866000,-770.52,0.00043972,120]
[420785220,1776529866125,-963.5,0.00043972,120]
[420785221,1776529866252,-1070.52,0.00043972,120]
[420785222,1776529866384,-679.42,0.00043972,120]
[420785223,1776529866514,-963.5,0.00043972,120]
[420785224,1776529866650,-1070.52,0.00043972,120]
[420785225,1776529866782,-679.42,0.00043972,120]
[420785226,1776529866914,-963.5,0.00043972,120]